fUST/lending_fUST_20251206
["ID","MTS","AMOUNT","RATE_DAILY","PERIOD"]
[396428593,1764964340543,-589.81,0.00019726,2]
[396428594,1764964340552,-500.0,0.00019726,2]
[396428595,1764964340561,-500.0,0.00019726,2]
[396428596,1764964340571,-537.52,0.00019726,2]
[396428597,1764964340580,-1014.04,0.00019726,2]
[396428598,1764964340590,-2220.46,0.00019726,2]
[396428599,1764964340599,-2190.66,0.00019726,2]
[396428600,1764964340609,-1158.75,0.00019726,2]
[396428601,1764964340618,-681.06,0.00019726,2]
[396428602,1764964340628,-500.0,0.00019726,2]
[396428603,1764964340637,-500.0,0.00019726,2]
[396428604,1764964340647,-2115.78,0.00019726,2]
[396428605,1764964340656,-500.0,0.00019726,2]
[396428606,1764964340666,-766.35,0.00019726,2]
[396428607,1764964340675,-966.12,0.00019726,2]
[396428608,1764964340684,-914.28,0.00019726,2]
[396428609,1764964340694,-982.55,0.00019726,2]
[396428610,1764964340703,-500.0,0.00019726,2]
[396428611,1764964340713,-936.35,0.00019726,2]
[396428612,1764964340722,-500.0,0.00019726,2]
[396428613,1764964340732,-500.0,0.00019726,2]
[396428614,1764964340742,-500.0,0.00019726,2]
[396428615,1764964340751,-500.0,0.00019726,2]
[396428616,1764964340761,-749.63,0.00019726,2]
[396428617,1764964340771,-1641.15,0.00019726,2]
[396428618,1764964340781,-1076.77,0.00019726,2]
[396428619,1764964340790,-500.0,0.00019726,2]
[396428620,1764964340799,-500.0,0.00019726,2]
[396428621,1764964340810,-603.68,0.00019726,2]
[396428622,1764964340819,-698.96,0.00019726,2]
[396428623,1764964340829,-1666.18,0.00019726,2]
[396428624,1764964340839,-671.97,0.00019726,2]
[396428625,1764964340849,-502.19,0.00019726,2]
[396428626,1764964340860,-2087.17,0.00019726,2]
[396428627,1764964340870,-500.0,0.00019726,2]
[396428628,1764964340879,-500.0,0.00019726,2]
[396428629,1764964340888,-516.65,0.00019726,2]
[396428630,1764964340897,-500.0,0.00019726,2]
[396428631,1764964340907,-2037.83,0.00019726,2]
[396428632,1764964340918,-501.13,0.00019726,2]
[396428633,1764964340928,-500.0,0.00019726,2]
[396428634,1764964340937,-571.62,0.00019726,2]
[396428635,1764964340946,-290.01630092,0.00019726,2]
[396428636,1764964340955,-1758.23,0.00019726,2]
[396428637,1764964340967,-4101.23,0.00019726,2]
[396428638,1764964340977,-1128.95,0.00019726,2]
[396428639,1764964340988,-2336.08,0.00019726,2]
[396428640,1764964340998,-735.18,0.00019726,2]
[396428641,1764964341008,-656.91,0.00019726,2]
[396428642,1764964341020,-942.22,0.00019726,2]
[396428643,1764964341031,-606.67,0.00019726,2]
[396428644,1764964341041,-866.26,0.00019726,2]
[396428645,1764964341050,-500.13,0.00019726,2]
[396428646,1764964341061,-500.0,0.00019726,2]
[396428647,1764964341070,-500.0,0.00019726,2]
[396428648,1764964341081,-748.38,0.00019726,2]
[396428649,1764964341091,-784.77,0.00019726,2]
[396428650,1764964341115,-500.0,0.00019726,2]
[396428651,1764964341133,-3000.65,0.00019726,2]
[396428652,1764964341153,-525.35,0.00019726,2]
[396428653,1764964341168,-632.24,0.00019726,2]
[396428654,1764964341188,-500.0,0.00019726,2]
[396428655,1764964341207,-734.19,0.00019726,2]
[396428656,1764964341225,-500.0,0.00019726,2]
[396428657,1764964341244,-500.0,0.00019726,2]
[396428658,1764964341260,-1121.55,0.00019726,2]
[396428659,1764964341277,-4195.91,0.00019726,2]
[396428660,1764964341293,-500.0,0.00019726,2]
[396428661,1764964341309,-1169.87,0.00019726,2]
[396428662,1764964341324,-500.0,0.00019726,2]
[396428663,1764964341341,-500.0,0.00019726,2]
[396428664,1764964341355,-1721.78,0.00019726,2]
[396428665,1764964341369,-797.93,0.00019726,2]
[396428666,1764964341385,-500.0,0.00019726,2]
[396428667,1764964341401,-3352.24,0.00019726,2]
[396428668,1764964341415,-701.25,0.00019726,2]
[396428669,1764964341430,-1865.02,0.00019726,2]
[396428670,1764964341445,-500.0,0.00019726,2]
[396428671,1764964341460,-547.35,0.00019726,2]
[396428672,1764964341476,-1140.86,0.00019726,2]
[396428673,1764964341490,-1061.3,0.00019726,2]
[396428674,1764964341505,-581.3,0.00019726,2]
[396428675,1764964341521,-561.53,0.00019726,2]
[396428676,1764964341536,-1248.52,0.00019726,2]
[396428677,1764964341551,-565.64,0.00019726,2]
[396428678,1764964341565,-1569.73,0.00019726,2]
[396428679,1764964341580,-1818.55,0.00019726,2]
[396428680,1764964341594,-522.2,0.00019726,2]
[396428681,1764964341612,-875.06,0.00019726,2]
[396428682,1764964341627,-500.0,0.00019726,2]
[396428683,1764964341643,-1114.54,0.00019726,2]
[396428684,1764964341658,-500.0,0.00019726,2]
[396428685,1764964341674,-500.0,0.00019726,2]
[396428686,1764964341688,-1202.31,0.00019726,2]
[396428687,1764964341704,-1019.58,0.00019726,2]
[396428688,1764964341719,-1283.59,0.00019726,2]
[396428689,1764964341735,-1200.75,0.00019726,2]
[396428690,1764964341751,-506.37,0.00019726,2]
[396428691,1764964341768,-500.0,0.00019726,2]
[396428692,1764964341784,-1231.58,0.00019726,2]
[396428693,1764964341799,-654.39,0.00019726,2]
[396428694,1764964341814,-506.68,0.00019726,2]
[396428695,1764964341828,-500.0,0.00019726,2]
[396428696,1764964341844,-500.0,0.00019726,2]
[396428697,1764964341863,-1113.91,0.00019726,2]
[396428698,1764964341879,-663.62,0.00019726,2]
[396428699,1764964341896,-753.47,0.00019726,2]
[396428700,1764964341912,-1445.18,0.00019726,2]
[396428701,1764964341928,-456.93976369,0.00019726,2]
[396428702,1764964341943,-500.0,0.00019726,2]
[396428703,1764964341960,-500.0,0.00019726,2]
[396428704,1764964341976,-780.5,0.00019726,2]
[396428705,1764964341992,-889.08,0.00019726,2]
[396428706,1764964342007,-463.37635676,0.00019726,2]
[396428707,1764964342027,-500.0,0.00019726,2]
[396428708,1764964342042,-2835.2,0.00019726,2]
[396428709,1764964342058,-500.0,0.00019726,2]
[396428710,1764964342074,-1729.46,0.00019726,2]
[396428711,1764964342090,-1979.46,0.00019726,2]
[396428712,1764964342106,-575.86,0.00019726,2]
[396428713,1764964342120,-1316.03,0.00019726,2]
[396428714,1764964342135,-500.0,0.00019726,2]
[396428715,1764964342150,-1835.34,0.00019726,2]
[396428716,1764964342166,-908.87,0.00019726,2]
[396428717,1764964342182,-653.14,0.00019726,2]
[396428718,1764964342198,-557.4,0.00019726,2]
[396428719,1764964342213,-500.0,0.00019726,2]
[396428720,1764964342228,-1274.81,0.00019726,2]
[396428721,1764964342242,-978.78,0.00019726,2]
[396428722,1764964342257,-500.0,0.00019726,2]
[396428723,1764964342273,-500.0,0.00019726,2]
[396428724,1764964342289,-1825.48,0.00019726,2]
[396428725,1764964342304,-1459.61,0.00019726,2]
[396428726,1764964342319,-500.0,0.00019726,2]
[396428727,1764964342336,-1362.88,0.00019726,2]
[396428728,1764964342352,-2330.6,0.00019726,2]
[396428729,1764964342368,-2129.96,0.00019726,2]
[396428730,1764964342383,-500.0,0.00019726,2]
[396428731,1764964342398,-500.0,0.00019726,2]
[396428732,1764964342413,-664.95,0.00019726,2]
[396428733,1764964342428,-1189.18,0.00019726,2]
[396428734,1764964342443,-500.0,0.00019726,2]
[396428735,1764964342459,-989.95,0.00019726,2]
[396428736,1764964342474,-1775.43,0.00019726,2]
[396428737,1764964342489,-1334.27,0.00019726,2]
[396428738,1764964342504,-500.0,0.00019726,2]
[396428739,1764964342521,-500.0,0.00019726,2]
[396428740,1764964342535,-500.0,0.00019726,2]
[396428741,1764964342551,-796.25,0.00019726,2]
[396428742,1764964342566,-500.0,0.00019726,2]
[396428743,1764964342583,-4147.96,0.00019726,2]
[396428744,1764964342599,-500.0,0.00019726,2]
[396428745,1764964342614,-677.16,0.00019726,2]
[396428746,1764964342629,-3508.67,0.00019726,2]
[396428747,1764964342644,-3856.98,0.00019726,2]
[396428748,1764964342659,-1405.37,0.00019726,2]
[396428749,1764964342674,-500.0,0.00019726,2]
[396428750,1764964342689,-8546.16,0.00019726,2]
[396428751,1764964342704,-595.52,0.00019726,2]
[396428752,1764964342718,-2012.27,0.00019726,2]
[396428753,1764964342734,-760.14,0.00019726,2]
[396428754,1764964342749,-869.37,0.00019726,2]
[396428755,1764964342765,-2862.43,0.00019726,2]
[396428756,1764964342781,-500.0,0.00019726,2]
[396428757,1764964342796,-500.0,0.00019726,2]
[396428758,1764964342810,-1260.61,0.00019726,2]
[396428759,1764964342825,-27168.59,0.00019726,2]
[396428760,1764964342840,-2573.74,0.00019726,2]
[396428761,1764964342855,-500.0,0.00019726,2]
[396428762,1764964342871,-500.0,0.00019726,2]
[396428763,1764964342885,-1519.74,0.00019726,2]
[396428764,1764964342900,-3739.24,0.00019726,2]
[396428765,1764964342914,-837.97,0.00019726,2]
[396428766,1764964342933,-2210.97,0.00019726,2]
[396428767,1764964342947,-879.68,0.00019726,2]
[396428768,1764964342962,-934.83,0.00019726,2]
[396428769,1764964342977,-1534.0,0.00019726,2]
[396428770,1764964342992,-613.38,0.00019726,2]
[396428771,1764964343007,-1145.34,0.00019726,2]
[396428772,1764964343027,-7737.29,0.00019726,2]
[396428773,1764964343044,-2897.13,0.00019726,2]
[396428774,1764964343059,-2245.52,0.00019726,2]
[396428775,1764964343075,-3989.26,0.00019726,2]
[396428776,1764964343090,-1590.89,0.00019726,2]
[396428777,1764964343107,-4880.82,0.00019726,2]
[396428778,1764964343122,-500.0,0.00019726,2]
[396428779,1764964343137,-500.0,0.00019726,2]
[396428780,1764964343153,-2037.18,0.00019726,2]
[396428781,1764964343169,-500.0,0.00019726,2]
[396428782,1764964343184,-1939.29,0.00019726,2]
[396428783,1764964343200,-500.0,0.00019726,2]
[396428784,1764964343217,-603.68,0.00019726,2]
[396428785,1764964343233,-586.39,0.00019726,2]
[396428786,1764964343249,-500.0,0.00019726,2]
[396428787,1764964343265,-3745.52,0.00019726,2]
[396428788,1764964343576,-1761.7,0.00019726,2]
[396428789,1764964343586,-500.0,0.00019726,2]
[396428790,1764964343596,-500.0,0.00019726,2]
[396428791,1764964343606,-500.0,0.00019726,2]
[396428792,1764964343616,-1154.72,0.00019726,2]
[396428793,1764964343625,-8082.89,0.00019726,2]
[396428794,1764964343635,-1316.55,0.00019726,2]
[396428795,1764964343644,-1061.67,0.00019726,2]
[396428796,1764964343654,-1179.67,0.00019726,2]
[396428797,1764964343664,-808.12,0.00019726,2]
[396428798,1764964343674,-500.0,0.00019726,2]
[396428799,1764964343684,-500.0,0.00019726,2]
[396428800,1764964343695,-500.0,0.00019726,2]
[396428801,1764964343705,-548.83,0.00019726,2]
[396428802,1764964343716,-2735.13,0.00019726,2]
[396428803,1764964343726,-2878.01,0.00019726,2]
[396428804,1764964343740,-500.0,0.00019726,2]
[396428805,1764964343750,-6762.23,0.00019726,2]
[396428806,1764964343764,-1977.79,0.00019726,2]
[396428807,1764964343775,-500.0,0.00019726,2]
[396428808,1764964343785,-512.63,0.00019726,2]
[396428809,1764964343795,-690.27,0.00019726,2]
[396428810,1764964343806,-531.05,0.00019726,2]
[396428811,1764964343816,-588.28,0.00019726,2]
[396428812,1764964343826,-500.0,0.00019726,2]
[396428813,1764964343836,-500.0,0.00019726,2]
[396428814,1764964343845,-1011.28,0.00019726,2]
[396428815,1764964343856,-6262.41,0.00019726,2]
[396428816,1764964343867,-2046.2,0.00019726,2]
[396428817,1764964343877,-179.19296969,0.00019726,2]
[396428818,1764964343886,-2730.7,0.00019726,2]
[396428819,1764964343896,-776.59,0.00019726,2]
[396428820,1764964343906,-500.0,0.00019726,2]
[396428821,1764964343916,-632.99,0.00019726,2]
[396428822,1764964343926,-9293.72,0.00019726,2]
[396428823,1764964343936,-500.0,0.00019726,2]
[396428824,1764964343946,-1523.9,0.00019726,2]
[396428825,1764964343955,-2206.65,0.00019726,2]
[396428826,1764964343965,-1216.27,0.00019726,2]
[396428827,1764964343975,-1517.87,0.00019726,2]
[396428828,1764964343984,-890.47,0.00019726,2]
[396428829,1764964343995,-537.66267097,0.00019726,2]
[396428830,1764964344004,-500.0,0.00019726,2]
[396428831,1764964344020,-678.08,0.00019726,2]
[396428832,1764964344029,-12607.12,0.00019726,2]
[396428833,1764964344039,-1261.52,0.00019726,2]
[396428834,1764964344049,-3411.98,0.00019726,2]
[396428835,1764964344060,-500.0,0.00019726,2]
[396428836,1764964344070,-8433.96,0.00019726,2]
[396428837,1764964344079,-500.0,0.00019726,2]
[396428838,1764964344090,-4594.16,0.00019726,2]
[396428839,1764964344101,-639.2,0.00019726,2]
[396428840,1764964344111,-601.94,0.00019726,2]
[396428841,1764964344121,-500.0,0.00019726,2]
[396428842,1764964344131,-557.9,0.00019726,2]
[396428843,1764964344141,-768.56,0.00019726,2]
[396428844,1764964344151,-564.07,0.00019726,2]
[396428845,1764964344160,-2955.98,0.00019726,2]
[396428846,1764964344170,-1537.53,0.00019726,2]
[396428847,1764964344180,-1822.27,0.00019726,2]
[396428848,1764964344190,-1145.09,0.00019726,2]
[396428849,1764964344200,-1807.2,0.00019726,2]
[396428850,1764964344209,-3671.84,0.00019726,2]
[396428851,1764964344219,-1517.42,0.00019726,2]
[396428852,1764964344228,-1021.51,0.00019726,2]
[396428853,1764964344239,-500.0,0.00019726,2]
[396428854,1764964344249,-500.0,0.00019726,2]
[396428855,1764964344259,-1718.3,0.00019726,2]
[396428856,1764964344270,-15606.7,0.00019726,2]
[396428857,1764964344280,-7505.89,0.00019726,2]
[396428858,1764964344290,-500.0,0.00019726,2]
[396428859,1764964344301,-629.93,0.00019726,2]
[396428860,1764964344310,-4537.01,0.00019726,2]
[396428861,1764964344320,-1160.08,0.00019726,2]
[396428862,1764964344330,-500.0,0.00019726,2]
[396428863,1764964344339,-6149.82,0.00019726,2]
[396428864,1764964344348,-2978.24,0.00019726,2]
[396428865,1764964344358,-500.0,0.00019726,2]
[396428866,1764964344367,-566.43,0.00019726,2]
[396428867,1764964344377,-1483.55,0.00019726,2]
[396428868,1764964344387,-2769.97,0.00019726,2]
[396428869,1764964344396,-1249.37,0.00019726,2]
[396428870,1764964344405,-500.0,0.00019726,2]
[396428871,1764964344415,-603.32,0.00019726,2]
[396428872,1764964344424,-500.0,0.00019726,2]
[396428873,1764964344433,-2626.61,0.00019726,2]
[396428874,1764964344443,-4802.09,0.00019726,2]
[396428875,1764964344452,-999.44,0.00019726,2]
[396428876,1764964344462,-1503.75,0.00019726,2]
[396428877,1764964344472,-500.0,0.00019726,2]
[396428878,1764964344481,-19450.21,0.00019726,2]
[396428879,1764964344491,-1573.31,0.00019726,2]
[396428880,1764964344500,-1075.02,0.00019726,2]
[396428881,1764964344510,-342.72764445,0.00019726,2]
[396428882,1764964344520,-1106.6,0.00019726,2]
[396428883,1764964344529,-282.59177398,0.00019726,2]
[396428884,1764964344539,-840.72,0.00019726,2]
[396428885,1764964344548,-500.0,0.00019726,2]
[396428886,1764964344558,-1613.52,0.00019726,2]
[396428887,1764964344567,-500.0,0.00019726,2]
[396428888,1764964344576,-518.4,0.00019726,2]
[396428889,1764964344586,-500.0,0.00019726,2]
[396428890,1764964344595,-3055.31,0.00019726,2]
[396428891,1764964344606,-994.67,0.00019726,2]
[396428892,1764964344623,-994.61,0.00019726,2]
[396428893,1764964344633,-5779.12,0.00019726,2]
[396428894,1764964344645,-541.54,0.00019726,2]
[396428895,1764964344660,-500.0,0.00019726,2]
[396428896,1764964344670,-2703.83,0.00019726,2]
[396428897,1764964344681,-723.64,0.00019726,2]
[396428898,1764964344691,-500.0,0.00019726,2]
[396428899,1764964344701,-13490.98,0.00019726,2]
[396428900,1764964344710,-2375.57,0.00019726,2]
[396428901,1764964344721,-500.0,0.00019726,2]
[396428902,1764964344730,-1855.42,0.00019726,2]
[396428903,1764964344740,-1108.58,0.00019726,2]
[396428904,1764964344749,-981.84,0.00019726,2]
[396428905,1764964344759,-500.0,0.00019726,2]
[396428906,1764964344769,-500.0,0.00019726,2]
[396428907,1764964344779,-8333.33,0.00019726,2]
[396428908,1764964344789,-505.07,0.00019726,2]
[396428909,1764964344800,-3168.21,0.00019726,2]
[396428910,1764964344810,-8522.94,0.00019726,2]
[396428911,1764964344820,-500.0,0.00019726,2]
[396428912,1764964344829,-2974.3,0.00019726,2]
[396428913,1764964344838,-882.76,0.00019726,2]
[396428914,1764964344848,-773.39,0.00019726,2]
[396428915,1764964344858,-500.0,0.00019726,2]
[396428916,1764964344868,-244.03913015,0.00019726,2]
[396428917,1764964344877,-500.0,0.00019726,2]
[396428918,1764964344886,-1466.62,0.00019726,2]
[396428919,1764964344896,-1900.64,0.00019726,2]
[396428920,1764964344906,-5166.32,0.00019726,2]
[396428921,1764964344916,-500.0,0.00019726,2]
[396428922,1764964344926,-199.79476327,0.00019726,2]
[396428923,1764964344935,-500.0,0.00019726,2]
[396428924,1764964344945,-559.78,0.00019726,2]
[396428925,1764964344954,-500.0,0.00019726,2]
[396428926,1764964344964,-579.43,0.00019726,2]
[396428927,1764964344973,-1126.56,0.00019726,2]
[396428928,1764964344982,-531.72,0.00019726,2]
[396428929,1764964344995,-7493.2,0.00019726,2]
[396428930,1764964345005,-1357.94,0.00019726,2]
[396428931,1764964345015,-500.0,0.00019726,2]
[396428932,1764964345027,-2140.67,0.00019726,2]
[396428933,1764964345037,-504.84,0.00019726,2]
[396428934,1764964345047,-1456.29,0.00019726,2]
[396428935,1764964345055,-1852.77,0.00019726,2]
[396428936,1764964345066,-5290.3,0.00019726,2]
[396428937,1764964345075,-500.0,0.00019726,2]
[396428938,1764964345084,-18021.5,0.00019726,2]
[396428939,1764964345095,-5946.49,0.00019726,2]
[396428940,1764964345104,-1141.14,0.00019726,2]
[396428941,1764964345113,-5755.4,0.00019726,2]
[396428942,1764964345122,-899.33,0.00019726,2]
[396428943,1764964345132,-500.0,0.00019726,2]
[396428944,1764964345141,-1193.75,0.00019726,2]
[396428945,1764964345150,-500.0,0.00019726,2]
[396428946,1764964345159,-18224.67,0.00019726,2]
[396428947,1764964345169,-2555.22,0.00019726,2]
[396428948,1764964345178,-500.0,0.00019726,2]
[396428949,1764964345188,-15992.22,0.00019726,2]
[396428950,1764964345197,-500.0,0.00019726,2]
[396428951,1764964345207,-500.0,0.00019726,2]
[396428952,1764964345216,-2246.86,0.00019726,2]
[396428953,1764964345226,-500.0,0.00019726,2]
[396428954,1764964345236,-458.91585545,0.00019726,2]
[396428955,1764964345245,-1396.97,0.00019726,2]
[396428956,1764964345255,-699.92,0.00019726,2]
[396428957,1764964345264,-1327.48,0.00019726,2]
[396428958,1764964345273,-3223.39,0.00019726,2]
[396428959,1764964345283,-1347.5,0.00019726,2]
[396428960,1764964345292,-2513.49,0.00019726,2]
[396428961,1764964345301,-667.1,0.00019726,2]
[396428962,1764964345311,-500.0,0.00019726,2]
[396428963,1764964345320,-2175.03,0.00019726,2]
[396428964,1764964345329,-40156.73,0.00019726,2]
[396428965,1764964345339,-906.92,0.00019726,2]
[396428966,1764964345348,-500.0,0.00019726,2]
[396428967,1764964345358,-10167.34,0.00019726,2]
[396428968,1764964345368,-3602.82,0.00019726,2]
[396428969,1764964345377,-690.39,0.00019726,2]
[396428970,1764964345388,-570.25,0.00019726,2]
[396428971,1764964345398,-3182.83,0.00019726,2]
[396428972,1764964345409,-500.0,0.00019726,2]
[396428973,1764964345418,-2410.62,0.00019726,2]
[396428974,1764964345427,-163.96339848,0.00019726,2]
[396428975,1764964345437,-2260.75,0.00019726,2]
[396428976,1764964345446,-1031.43,0.00019726,2]
[396428977,1764964345456,-871.12,0.00019726,2]
[396428978,1764964345466,-500.0,0.00019726,2]
[396428979,1764964345476,-1240.63,0.00019726,2]
[396428980,1764964345485,-500.0,0.00019726,2]
[396428981,1764964345495,-3147.39,0.00019726,2]
[396428982,1764964345505,-535.52,0.00019726,2]
[396428983,1764964345515,-3754.05,0.00019726,2]
[396428984,1764964345525,-2393.17,0.00019726,2]
[396428985,1764964345534,-640.85,0.00019726,2]
[396428986,1764964345544,-2634.96,0.00019726,2]
[396428987,1764964345553,-700.33,0.00019726,2]
[396428988,1764964345563,-500.0,0.00019726,2]
[396428989,1764964345574,-500.0,0.00019726,2]
[396428990,1764964345584,-3889.17,0.00019726,2]
[396428991,1764964345594,-500.0,0.00019726,2]
[396428992,1764964345603,-786.42,0.00019726,2]
[396428993,1764964345612,-500.0,0.00019726,2]
[396428994,1764964345621,-1453.14,0.00019726,2]
[396428995,1764964345632,-500.0,0.00019726,2]
[396428996,1764964345641,-2259.44,0.00019726,2]
[396428997,1764964345651,-642.0,0.00019726,2]
[396428998,1764964345660,-500.0,0.00019726,2]
[396428999,1764964345670,-250.0,0.00019726,2]
[396429000,1764964345679,-700.70008823,0.00019726,2]
[396429001,1764964345689,-1275.7,0.000198,2]
[396429002,1764964345698,-1148.15278364,0.00019861,2]
[396429003,1764964345708,-179.92802879,0.00019929,2]
[396429004,1764964345718,-11222.34554253,0.0002,7]
[396429005,1764964345727,-2000.0,0.0002,14]
[396429006,1764964345737,-2000.0,0.0002,14]
[396429007,1764964345746,-2000.0,0.0002,14]
[396429008,1764964345756,-1177.9,0.0002,14]
[396429009,1764964345765,-150.0,0.0002,2]
[396429010,1764964345775,-11704.40250244,0.0002,2]
[396429011,1764964345785,-14638.59298173,0.0002,2]
[396429012,1764964345794,-370.03384938,0.0002,2]
[396429013,1764964345803,-477.72627567,0.0002,2]
[396429014,1764964345812,-23000.0,0.0002,2]
[396429015,1764964345822,-201.84360901,0.0002,2]
[396429016,1764964345831,-502.20867302,0.0002,2]
[396429017,1764964345840,-20473.504462,0.0002,2]
[396429018,1764964345850,-3799.77463978,0.0002,2]
[396429019,1764964345860,-80627.59316586,0.0002,2]
[396429020,1764964345868,-315.63804423,0.0002,2]
[396429021,1764964345878,-500.0,0.0002,2]
[396429022,1764964345887,-674.84,0.0002,2]
[396429023,1764964345896,-759.28,0.0002,2]
[396429024,1764964345905,-500.0,0.0002,2]
[396429025,1764964345915,-821.01,0.0002,2]
[396429026,1764964345924,-3248.83,0.0002,2]
[396429027,1764964345934,-500.0,0.0002,2]
[396429028,1764964345944,-596.14,0.0002,2]
[396429029,1764964345954,-766.62,0.0002,2]
[396429030,1764964345963,-677.48,0.0002,2]
[396429031,1764964345973,-710.03,0.0002,2]
[396429032,1764964345983,-978.11,0.0002,2]
[396429033,1764964345992,-500.0,0.0002,2]
[396429034,1764964346003,-950.77,0.0002,2]
[396429035,1764964346013,-2195.96,0.0002,2]
[396429036,1764964346024,-510.40784471,0.0002,2]
[396429037,1764964346034,-500.0,0.0002,2]
[396429038,1764964346043,-831.34,0.0002,2]
[396429039,1764964346052,-500.0,0.0002,2]
[396429040,1764964346061,-609.85,0.0002,2]
[396429041,1764964346071,-1164.68,0.0002,2]
[396429042,1764964346080,-500.0,0.0002,2]
[396429043,1764964346089,-500.0,0.0002,2]
[396429044,1764964346099,-768.78,0.0002,2]
[396429045,1764964346108,-609.15,0.0002,2]
[396429046,1764964346117,-500.0,0.0002,2]
[396429047,1764964346127,-1330.04,0.0002,2]
[396429048,1764964346136,-913.97,0.0002,2]
[396429049,1764964346145,-500.0,0.0002,2]
[396429050,1764964346154,-500.0,0.0002,2]
[396429051,1764964346163,-738.1,0.0002,2]
[396429052,1764964346173,-1071.4,0.0002,2]
[396429053,1764964346182,-1543.99,0.0002,2]
[396429054,1764964346191,-1862.41,0.0002,2]
[396429055,1764964346201,-500.0,0.0002,2]
[396429056,1764964346210,-616.7457408,0.0002,2]
[396429057,1764964346220,-939.06,0.0002,2]
[396429058,1764964346230,-1733.31,0.0002,2]
[396429059,1764964346239,-2719.16,0.0002,2]
[396429060,1764964346248,-826.15,0.0002,2]
[396429061,1764964346258,-500.0,0.0002,2]
[396429062,1764964346268,-500.0,0.0002,2]
[396429063,1764964346277,-1078.39,0.0002,2]
[396429064,1764964346286,-708.58,0.0002,2]
[396429065,1764964346296,-1771.78,0.0002,2]
[396429066,1764964346306,-489.08000124,0.0002,2]
[396429067,1764964346317,-500.0,0.0002,2]
[396429068,1764964346326,-500.0,0.0002,2]
[396429069,1764964346336,-500.0,0.0002,2]
[396429070,1764964346345,-672.42,0.0002,2]
[396429071,1764964346354,-874.07,0.0002,2]
[396429072,1764964346364,-611.92,0.0002,2]
[396429073,1764964346373,-2821.54,0.0002,2]
[396429074,1764964346382,-500.0,0.0002,2]
[396429075,1764964346391,-500.0,0.0002,2]
[396429076,1764964346400,-159.47066922,0.0002,2]
[396429077,1764964346410,-971.51,0.0002,2]
[396429078,1764964346419,-906.08,0.0002,2]
[396429079,1764964346428,-636.11,0.0002,2]
[396429080,1764964346438,-500.0,0.0002,2]
[396429081,1764964346447,-571.85,0.0002,2]
[396429082,1764964346456,-500.0,0.0002,2]
[396429083,1764964346465,-1069.86,0.0002,2]
[396429084,1764964346476,-1462.76,0.0002,2]
[396429085,1764964346485,-502.82,0.0002,2]
[396429086,1764964346495,-500.0,0.0002,2]
[396429087,1764964346505,-2534.3,0.0002,2]
[396429088,1764964346514,-500.0,0.0002,2]
[396429089,1764964346523,-500.0,0.0002,2]
[396429090,1764964346533,-500.0,0.0002,2]
[396429091,1764964346542,-500.0,0.0002,2]
[396429092,1764964346551,-647.83,0.0002,2]